fUST/lending_fUST_20250814
["ID","MTS","AMOUNT","RATE_DAILY","PERIOD"]
[379070878,1755115859735,-467.85,0.00019726,2]
[379070879,1755115859746,-460.0,0.00019726,2]
[379070880,1755115859758,-460.0,0.00019726,2]
[379070881,1755115859769,-464.63339883,0.00019726,2]
[379070882,1755115859780,-460.0,0.00019726,2]
[379070883,1755115859791,-460.0,0.00019726,2]
[379070884,1755115859803,-1485.36,0.00019726,2]
[379070885,1755115859813,-282.68791898,0.00019726,2]
[379070886,1755115859824,-460.0,0.00019726,2]
[379070887,1755115859835,-460.0,0.00019726,2]
[379070888,1755115859846,-460.0,0.00019726,2]
[379070889,1755115859857,-460.0,0.00019726,2]
[379070890,1755115859868,-1252.41,0.00019726,2]
[379070891,1755115859879,-460.0,0.00019726,2]
[379070892,1755115859890,-460.0,0.00019726,2]
[379070893,1755115859900,-460.0,0.00019726,2]
[379070894,1755115859911,-460.0,0.00019726,2]
[379070895,1755115859922,-460.0,0.00019726,2]
[379070896,1755115859933,-460.0,0.00019726,2]
[379070897,1755115859943,-602.53,0.00019726,2]
[379070898,1755115859954,-905.73,0.00019726,2]
[379070899,1755115859965,-460.0,0.00019726,2]
[379070900,1755115859976,-460.0,0.00019726,2]
[379070901,1755115859987,-460.0,0.00019726,2]
[379070902,1755115859998,-460.0,0.00019726,2]
[379070903,1755115860010,-2758.86,0.00019726,2]
[379070904,1755115860022,-735.89,0.00019726,2]
[379070905,1755115860033,-460.0,0.00019726,2]
[379070906,1755115860044,-460.0,0.00019726,2]
[379070907,1755115860056,-460.0,0.00019726,2]
[379070908,1755115860067,-504.54,0.00019726,2]
[379070909,1755115860079,-460.0,0.00019726,2]
[379070910,1755115860091,-460.0,0.00019726,2]
[379070911,1755115860102,-460.0,0.00019726,2]
[379070912,1755115860114,-460.0,0.00019726,2]
[379070913,1755115860125,-460.0,0.00019726,2]
[379070914,1755115860137,-460.0,0.00019726,2]
[379070915,1755115860148,-619.7,0.00019726,2]
[379070916,1755115860159,-618.3,0.00019726,2]
[379070917,1755115860174,-577.53,0.00019726,2]
[379070918,1755115860400,-468.69959795,0.00019726,2]
[379070919,1755115860483,-460.0,0.00019726,2]
[379070920,1755115860495,-477.37,0.00019726,2]
[379070921,1755115860505,-460.0,0.00019726,2]
[379070922,1755115860514,-460.0,0.00019726,2]
[379070923,1755115860524,-460.0,0.00019726,2]
[379070924,1755115860533,-460.0,0.00019726,2]
[379070925,1755115860542,-621.59,0.00019726,2]
[379070926,1755115860552,-718.3,0.00019726,2]
[379070927,1755115860562,-482.48,0.00019726,2]
[379070928,1755115860571,-460.0,0.00019726,2]
[379070929,1755115860580,-460.0,0.00019726,2]
[379070930,1755115860589,-841.58,0.00019726,2]
[379070931,1755115860599,-460.0,0.00019726,2]
[379070932,1755115860608,-460.0,0.00019726,2]
[379070933,1755115860619,-460.0,0.00019726,2]
[379070934,1755115860628,-460.0,0.00019726,2]
[379070935,1755115860638,-460.0,0.00019726,2]
[379070936,1755115860647,-460.0,0.00019726,2]
[379070937,1755115860656,-460.0,0.00019726,2]
[379070938,1755115860666,-460.0,0.00019726,2]
[379070939,1755115860675,-460.0,0.00019726,2]
[379070940,1755115860684,-460.0,0.00019726,2]
[379070941,1755115860693,-1057.0,0.00019726,2]
[379070942,1755115860702,-460.0,0.00019726,2]
[379070943,1755115860712,-460.0,0.00019726,2]
[379070944,1755115860721,-725.98,0.00019726,2]
[379070945,1755115860731,-460.0,0.00019726,2]
[379070946,1755115860740,-460.0,0.00019726,2]
[379070947,1755115860750,-460.0,0.00019726,2]
[379070948,1755115860759,-1761.85,0.00019726,2]
[379070949,1755115860770,-460.0,0.00019726,2]
[379070950,1755115860779,-460.0,0.00019726,2]
[379070951,1755115860788,-460.0,0.00019726,2]
[379070952,1755115860798,-460.0,0.00019726,2]
[379070953,1755115860807,-460.0,0.00019726,2]
[379070954,1755115860818,-460.0,0.00019726,2]
[379070955,1755115860827,-460.0,0.00019726,2]
[379070956,1755115860837,-573.0,0.00019726,2]
[379070957,1755115860847,-668.47,0.00019726,2]
[379070958,1755115860856,-460.0,0.00019726,2]
[379070959,1755115860866,-611.81,0.00019726,2]
[379070960,1755115860875,-1341.69,0.00019726,2]
[379070961,1755115860884,-659.86,0.00019726,2]
[379070962,1755115860894,-460.0,0.00019726,2]
[379070963,1755115860903,-460.0,0.00019726,2]
[379070964,1755115860913,-460.0,0.00019726,2]
[379070965,1755115860922,-740.97,0.00019726,2]
[379070966,1755115860930,-460.0,0.00019726,2]
[379070967,1755115860940,-460.0,0.00019726,2]
[379070968,1755115860949,-460.0,0.00019726,2]
[379070969,1755115860958,-460.0,0.00019726,2]
[379070970,1755115860967,-460.0,0.00019726,2]
[379070971,1755115860977,-563.24,0.00019726,2]
[379070972,1755115860986,-460.0,0.00019726,2]
[379070973,1755115860995,-758.65,0.00019726,2]
[379070974,1755115861005,-470.18627361,0.00019726,2]
[379070975,1755115861015,-460.0,0.00019726,2]
[379070976,1755115861024,-2239.5,0.00019726,2]
[379070977,1755115861034,-460.0,0.00019726,2]
[379070978,1755115861043,-1881.39,0.00019726,2]
[379070979,1755115861053,-460.0,0.00019726,2]
[379070980,1755115861062,-460.0,0.00019726,2]
[379070981,1755115861072,-460.0,0.00019726,2]
[379070982,1755115861082,-850.59,0.00019726,2]
[379070983,1755115861091,-2386.49,0.00019726,2]
[379070984,1755115861100,-989.38,0.00019726,2]
[379070985,1755115861109,-460.0,0.00019726,2]
[379070986,1755115861120,-753.2,0.00019726,2]
[379070987,1755115861130,-289.79542181,0.00019726,2]
[379070988,1755115861140,-6147.95,0.00019726,2]
[379070989,1755115861149,-460.0,0.00019726,2]
[379070990,1755115861159,-460.0,0.00019726,2]
[379070991,1755115861172,-1410.98,0.00019726,2]
[379070992,1755115861182,-460.0,0.00019726,2]
[379070993,1755115861191,-1219.51,0.00019726,2]
[379070994,1755115861201,-460.0,0.00019726,2]
[379070995,1755115861211,-1932.04,0.00019726,2]
[379070996,1755115861220,-460.0,0.00019726,2]
[379070997,1755115861230,-460.0,0.00019726,2]
[379070998,1755115861240,-460.0,0.00019726,2]
[379070999,1755115861250,-465.71822067,0.00019726,2]
[379071000,1755115861260,-460.0,0.00019726,2]
[379071001,1755115861269,-460.0,0.00019726,2]
[379071002,1755115861279,-460.0,0.00019726,2]
[379071003,1755115861288,-814.53,0.00019726,2]
[379071004,1755115861297,-460.0,0.00019726,2]
[379071005,1755115861311,-460.0,0.00019726,2]
[379071006,1755115861321,-460.0,0.00019726,2]
[379071007,1755115861330,-460.0,0.00019726,2]
[379071008,1755115861340,-460.0,0.00019726,2]
[379071009,1755115861349,-460.0,0.00019726,2]
[379071010,1755115861359,-460.0,0.00019726,2]
[379071011,1755115861369,-460.0,0.00019726,2]
[379071012,1755115861379,-812.34,0.00019726,2]
[379071013,1755115861389,-460.0,0.00019726,2]
[379071014,1755115861398,-1280.72,0.00019726,2]
[379071015,1755115861408,-460.0,0.00019726,2]
[379071016,1755115861418,-735.0,0.00019726,2]
[379071017,1755115861427,-545.15,0.00019726,2]
[379071018,1755115861437,-460.0,0.00019726,2]
[379071019,1755115861447,-460.0,0.00019726,2]
[379071020,1755115861456,-4267.69,0.00019726,2]
[379071021,1755115861466,-4192.29,0.00019726,2]
[379071022,1755115861475,-460.0,0.00019726,2]
[379071023,1755115861485,-460.0,0.00019726,2]
[379071024,1755115861494,-508.78550387,0.00019726,2]
[379071025,1755115861504,-534.48078401,0.00019726,2]
[379071026,1755115861514,-460.0,0.00019726,2]
[379071027,1755115861523,-1382.67,0.00019726,2]
[379071028,1755115861533,-460.0,0.00019726,2]
[379071029,1755115861542,-923.5,0.00019726,2]
[379071030,1755115861552,-567.17,0.00019726,2]
[379071031,1755115861562,-460.0,0.00019726,2]
[379071032,1755115861572,-460.0,0.00019726,2]
[379071033,1755115861582,-460.0,0.00019726,2]
[379071034,1755115861594,-477.02400461,0.00019726,2]
[379071035,1755115861603,-460.0,0.00019726,2]
[379071036,1755115861612,-460.0,0.00019726,2]
[379071037,1755115861622,-1960.74,0.00019726,2]
[379071038,1755115861631,-650.46,0.00019726,2]
[379071039,1755115861641,-672.78,0.00019726,2]
[379071040,1755115861650,-460.0,0.00019726,2]
[379071041,1755115861660,-460.0,0.00019726,2]
[379071042,1755115861670,-460.0,0.00019726,2]
[379071043,1755115861680,-460.0,0.00019726,2]
[379071044,1755115861691,-543.86,0.00019726,2]
[379071045,1755115861701,-460.0,0.00019726,2]
[379071046,1755115861711,-472.25,0.00019726,2]
[379071047,1755115861721,-460.0,0.00019726,2]
[379071048,1755115861730,-1053.23,0.00019726,2]
[379071049,1755115861746,-573.95,0.00019726,2]
[379071050,1755115861756,-460.0,0.00019726,2]
[379071051,1755115861766,-460.0,0.00019726,2]
[379071052,1755115861776,-460.0,0.00019726,2]
[379071053,1755115861786,-460.0,0.00019726,2]
[379071054,1755115861796,-576.66,0.00019726,2]
[379071055,1755115861806,-460.0,0.00019726,2]
[379071056,1755115861817,-474.27,0.00019726,2]
[379071057,1755115861827,-460.0,0.00019726,2]
[379071058,1755115861837,-460.0,0.00019726,2]
[379071059,1755115861847,-460.0,0.00019726,2]
[379071060,1755115861857,-400.79533372,0.00019726,2]
[379071061,1755115861867,-460.0,0.00019726,2]
[379071062,1755115861877,-662.93,0.00019726,2]
[379071063,1755115861886,-1000.0,0.00019726,2]
[379071064,1755115861896,-460.0,0.00019726,2]
[379071065,1755115861905,-543.96,0.00019726,2]
[379071066,1755115861915,-460.0,0.00019726,2]
[379071067,1755115861924,-2189.79,0.00019726,2]
[379071068,1755115861933,-460.0,0.00019726,2]
[379071069,1755115861943,-460.0,0.00019726,2]
[379071070,1755115861952,-669.33,0.00019726,2]
[379071071,1755115861962,-460.0,0.00019726,2]
[379071072,1755115861971,-460.0,0.00019726,2]
[379071073,1755115861982,-946.5,0.00019726,2]
[379071074,1755115861993,-489.38,0.00019726,2]
[379071075,1755115862003,-460.0,0.00019726,2]
[379071076,1755115862013,-460.0,0.00019726,2]
[379071077,1755115862022,-460.0,0.00019726,2]
[379071078,1755115862032,-463.56983954,0.00019726,2]
[379071079,1755115862041,-460.0,0.00019726,2]
[379071080,1755115862051,-465.83713181,0.00019726,2]
[379071081,1755115862060,-1436.04,0.00019726,2]
[379071082,1755115862070,-460.0,0.00019726,2]
[379071083,1755115862079,-507.52,0.00019726,2]
[379071084,1755115862089,-460.0,0.00019726,2]
[379071085,1755115862099,-460.0,0.00019726,2]
[379071086,1755115862108,-460.0,0.00019726,2]
[379071087,1755115862118,-460.0,0.00019726,2]
[379071088,1755115862128,-1824.0,0.00019726,2]
[379071089,1755115862138,-733.14,0.00019726,2]
[379071090,1755115862147,-460.0,0.00019726,2]
[379071091,1755115862156,-460.0,0.00019726,2]
[379071092,1755115862166,-478.0,0.00019726,2]
[379071093,1755115862179,-460.0,0.00019726,2]
[379071094,1755115862188,-460.0,0.00019726,2]
[379071095,1755115862197,-542.62,0.00019726,2]
[379071096,1755115862206,-460.0,0.00019726,2]
[379071097,1755115862216,-460.0,0.00019726,2]
[379071098,1755115862227,-460.0,0.00019726,2]
[379071099,1755115862237,-460.0,0.00019726,2]
[379071100,1755115862247,-460.0,0.00019726,2]
[379071101,1755115862257,-460.0,0.00019726,2]
[379071102,1755115862267,-460.0,0.00019726,2]
[379071103,1755115862276,-460.0,0.00019726,2]
[379071104,1755115862285,-1363.79,0.00019726,2]
[379071105,1755115862295,-460.0,0.00019726,2]
[379071106,1755115862305,-460.0,0.00019726,2]
[379071107,1755115862314,-710.55,0.00019726,2]
[379071108,1755115862323,-460.0,0.00019726,2]
[379071109,1755115862333,-460.0,0.00019726,2]
[379071110,1755115862343,-460.0,0.00019726,2]
[379071111,1755115862353,-460.0,0.00019726,2]
[379071112,1755115862363,-460.0,0.00019726,2]
[379071113,1755115862373,-2530.94,0.00019726,2]
[379071114,1755115862384,-1829.45,0.00019726,2]
[379071115,1755115862398,-460.0,0.00019726,2]
[379071116,1755115862410,-573.95,0.00019726,2]
[379071117,1755115862420,-460.0,0.00019726,2]
[379071118,1755115862429,-460.0,0.00019726,2]
[379071119,1755115862438,-460.0,0.00019726,2]
[379071120,1755115862448,-460.0,0.00019726,2]
[379071121,1755115862458,-1224.78,0.00019726,2]
[379071122,1755115862468,-1547.71,0.00019726,2]
[379071123,1755115862477,-737.39,0.00019726,2]
[379071124,1755115862487,-540.21,0.00019726,2]
[379071125,1755115862496,-460.0,0.00019726,2]
[379071126,1755115862506,-460.0,0.00019726,2]
[379071127,1755115862515,-1811.96,0.00019726,2]
[379071128,1755115862524,-460.0,0.00019726,2]
[379071129,1755115862534,-460.0,0.00019726,2]
[379071130,1755115862543,-460.0,0.00019726,2]
[379071131,1755115862553,-460.0,0.00019726,2]
[379071132,1755115862562,-460.0,0.00019726,2]
[379071133,1755115862572,-460.0,0.00019726,2]
[379071134,1755115862581,-460.0,0.00019726,2]
[379071135,1755115862590,-460.0,0.00019726,2]
[379071136,1755115862600,-460.0,0.00019726,2]
[379071137,1755115862609,-460.85991417,0.00019726,2]
[379071138,1755115862619,-460.0,0.00019726,2]
[379071139,1755115862628,-460.0,0.00019726,2]
[379071140,1755115862637,-460.0,0.00019726,2]
[379071141,1755115862647,-1053.5,0.00019726,2]
[379071142,1755115862657,-1353.67,0.00019726,2]
[379071143,1755115862668,-460.0,0.00019726,2]
[379071144,1755115862678,-460.0,0.00019726,2]
[379071145,1755115862688,-3269.31,0.00019726,2]
[379071146,1755115862698,-3653.82,0.00019726,2]
[379071147,1755115862708,-460.0,0.00019726,2]
[379071148,1755115862718,-460.0,0.00019726,2]
[379071149,1755115862728,-460.0,0.00019726,2]
[379071150,1755115862738,-460.0,0.00019726,2]
[379071151,1755115862747,-460.0,0.00019726,2]
[379071152,1755115862757,-472.6,0.00019726,2]
[379071153,1755115862766,-854.33,0.00019726,2]
[379071154,1755115862775,-460.0,0.00019726,2]
[379071155,1755115862785,-3963.71,0.00019726,2]
[379071156,1755115862794,-460.0,0.00019726,2]
[379071157,1755115862803,-460.0,0.00019726,2]
[379071158,1755115862812,-460.0,0.00019726,2]
[379071159,1755115862822,-746.01,0.00019726,2]
[379071160,1755115862831,-661.67,0.00019726,2]
[379071161,1755115862840,-635.51,0.00019726,2]
[379071162,1755115862851,-2762.44,0.00019726,2]
[379071163,1755115862860,-460.0,0.00019726,2]
[379071164,1755115862870,-770.63,0.00019726,2]
[379071165,1755115862880,-950.59,0.00019726,2]
[379071166,1755115862890,-460.0,0.00019726,2]
[379071167,1755115862899,-1663.54,0.00019726,2]
[379071168,1755115862912,-460.0,0.00019726,2]
[379071169,1755115862922,-591.61287305,0.00019726,2]
[379071170,1755115862932,-1920.17,0.00019726,2]
[379071171,1755115862942,-823.48,0.00019726,2]
[379071172,1755115862951,-467.66125723,0.00019726,2]
[379071173,1755115862961,-480.24,0.00019726,2]
[379071174,1755115862970,-852.98,0.00019726,2]
[379071175,1755115862980,-460.0,0.00019726,2]
[379071176,1755115862989,-786.91,0.00019726,2]
[379071177,1755115862999,-1415.94,0.00019726,2]
[379071178,1755115863008,-460.0,0.00019726,2]
[379071179,1755115863018,-564.18,0.00019726,2]
[379071180,1755115863027,-460.0,0.00019726,2]
[379071181,1755115863036,-460.0,0.00019726,2]
[379071182,1755115863046,-460.0,0.00019726,2]
[379071183,1755115863055,-465.21285782,0.00019726,2]
[379071184,1755115863065,-1035.39,0.00019726,2]
[379071185,1755115863075,-2050.41,0.00019726,2]
[379071186,1755115863085,-460.0,0.00019726,2]
[379071187,1755115863094,-460.0,0.00019726,2]
[379071188,1755115863104,-179.329244,0.00019726,2]
[379071189,1755115863113,-179.329244,0.00019726,2]
[379071190,1755115863123,-460.0,0.00019726,2]
[379071191,1755115863133,-179.329244,0.00019726,2]
[379071192,1755115863142,-460.0,0.00019726,2]
[379071193,1755115863152,-1312.86,0.00019726,2]
[379071194,1755115863162,-460.0,0.00019726,2]
[379071195,1755115863177,-460.0,0.00019726,2]
[379071196,1755115863187,-179.329244,0.00019726,2]
[379071197,1755115863197,-179.329244,0.00019726,2]
[379071198,1755115863206,-179.329244,0.00019726,2]
[379071199,1755115863217,-757.19,0.00019726,2]
[379071200,1755115863227,-1767.5,0.00019726,2]
[379071201,1755115863237,-460.0,0.00019726,2]
[379071202,1755115863247,-596.07,0.00019726,2]
[379071203,1755115863258,-1225.81,0.00019726,2]
[379071204,1755115863269,-460.0,0.00019726,2]
[379071205,1755115863279,-1655.44,0.00019726,2]
[379071206,1755115863289,-1021.93,0.00019726,2]
[379071207,1755115863299,-509.79,0.00019726,2]
[379071208,1755115863310,-460.0,0.00019726,2]
[379071209,1755115863321,-460.0,0.00019726,2]
[379071210,1755115863342,-460.0,0.00019726,2]
[379071211,1755115863353,-1703.22,0.00019726,2]
[379071212,1755115863363,-460.0,0.00019726,2]
[379071213,1755115863373,-460.0,0.00019726,2]
[379071214,1755115863383,-460.0,0.00019726,2]
[379071215,1755115863393,-516.46984362,0.00019726,2]
[379071216,1755115863402,-791.06,0.00019726,2]
[379071217,1755115863412,-460.0,0.00019726,2]
[379071218,1755115863421,-4058.25,0.00019726,2]
[379071219,1755115863432,-460.0,0.00019726,2]
[379071220,1755115863441,-460.0,0.00019726,2]
[379071221,1755115863451,-460.0,0.00019726,2]
[379071222,1755115863461,-460.0,0.00019726,2]
[379071223,1755115863470,-460.0,0.00019726,2]
[379071224,1755115863480,-460.0,0.00019726,2]
[379071225,1755115863490,-460.0,0.00019726,2]
[379071226,1755115863500,-460.0,0.00019726,2]
[379071227,1755115863511,-2019.38,0.00019726,2]
[379071228,1755115863520,-277.80418431,0.00019726,2]
[379071229,1755115863529,-460.0,0.00019726,2]
[379071230,1755115863539,-460.0,0.00019726,2]
[379071231,1755115863549,-460.0,0.00019726,2]
[379071232,1755115863559,-6700.12,0.00019726,2]
[379071233,1755115863570,-460.0,0.00019726,2]
[379071234,1755115863580,-460.0,0.00019726,2]
[379071235,1755115863591,-460.0,0.00019726,2]
[379071236,1755115863601,-463.93983291,0.00019726,2]
[379071237,1755115863611,-1104.55,0.00019726,2]
[379071238,1755115863623,-460.0,0.00019726,2]
[379071239,1755115863633,-684.95,0.00019726,2]
[379071240,1755115863643,-460.0,0.00019726,2]
[379071241,1755115863652,-460.0,0.00019726,2]
[379071242,1755115863662,-460.0,0.00019726,2]
[379071243,1755115863672,-1758.47,0.00019726,2]
[379071244,1755115863869,-460.0,0.00019726,2]
[379071245,1755115863880,-460.0,0.00019726,2]
[379071246,1755115863890,-460.0,0.00019726,2]
[379071247,1755115863900,-460.0,0.00019726,2]
[379071248,1755115863909,-827.82,0.00019726,2]
[379071249,1755115863919,-468.62718844,0.00019726,2]
[379071250,1755115863929,-460.0,0.00019726,2]
[379071251,1755115863939,-460.0,0.00019726,2]
[379071252,1755115863949,-401.0706254,0.00019726,2]
[379071253,1755115863959,-11030.84,0.00019726,2]
[379071254,1755115863969,-460.0,0.00019726,2]
[379071255,1755115863978,-1671.8,0.00019726,2]
[379071256,1755115863988,-460.0,0.00019726,2]
[379071257,1755115863998,-460.0,0.00019726,2]
[379071258,1755115864009,-460.0,0.00019726,2]
[379071259,1755115864019,-460.0,0.00019726,2]
[379071260,1755115864029,-460.0,0.00019726,2]
[379071261,1755115864039,-460.0,0.00019726,2]
[379071262,1755115864049,-762.63,0.00019726,2]
[379071263,1755115864058,-460.0,0.00019726,2]
[379071264,1755115864068,-460.0,0.00019726,2]
[379071265,1755115864077,-460.0,0.00019726,2]
[379071266,1755115864087,-8448.68,0.00019726,2]
[379071267,1755115864096,-1219.873782,0.00019726,2]
[379071268,1755115864106,-1219.873782,0.00019726,2]
[379071269,1755115864115,-326.91305723,0.00019726,2]
[379071270,1755115864125,-691.76,0.00019726,2]
[379071271,1755115864135,-460.0,0.00019726,2]
[379071272,1755115864145,-1219.873782,0.00019726,2]
[379071273,1755115864154,-460.0,0.00019726,2]
[379071274,1755115864163,-1219.873782,0.00019726,2]
[379071275,1755115864178,-3051.43,0.00019726,2]
[379071276,1755115864187,-460.0,0.00019726,2]
[379071277,1755115864197,-460.0,0.00019726,2]
[379071278,1755115864207,-460.0,0.00019726,2]
[379071279,1755115864217,-460.0,0.00019726,2]
[379071280,1755115864227,-460.0,0.00019726,2]
[379071281,1755115864237,-460.0,0.00019726,2]
[379071282,1755115864247,-460.0,0.00019726,2]
[379071283,1755115864256,-460.0,0.00019726,2]
[379071284,1755115864265,-403.52,0.00019726,2]
[379071285,1755115864275,-460.0,0.00019726,2]
[379071286,1755115864284,-460.0,0.00019726,2]
[379071287,1755115864294,-460.0,0.00019726,2]
[379071288,1755115864303,-460.0,0.00019726,2]
[379071289,1755115864312,-460.0,0.00019726,2]
[379071290,1755115864322,-460.0,0.00019726,2]
[379071291,1755115864331,-460.0,0.00019726,2]
[379071292,1755115864342,-972.0,0.00019755,2]
[379071293,1755115864352,-636.0,0.00019755,2]
[379071294,1755115864362,-151.0,0.00019755,2]
[379071295,1755115864372,-1219.873782,0.00019755,2]
[379071296,1755115864381,-1219.873782,0.00019755,2]
[379071297,1755115864391,-168.0,0.00019787,2]
[379071298,1755115864402,-168.0,0.00019817,2]
[379071299,1755115864412,-168.0,0.00019827,2]
[379071300,1755115864422,-200.0,0.00019844,20]
[379071301,1755115864432,-200.0,0.00019844,20]
[379071302,1755115864442,-200.0,0.00019844,20]
[379071303,1755115864451,-3778.15646745,0.000199,2]
[379071304,1755115864461,-6818.31565088,0.000199,2]
[379071305,1755115864471,-17860.25944909,0.00019921,2]
[379071306,1755115864480,-168.0,0.00019946,2]
[379071307,1755115864490,-215.66009295,0.0002,2]
[379071308,1755115864500,-151.0,0.0002,2]
[379071309,1755115864511,-151.0,0.0002,2]
[379071310,1755115864521,-603.0,0.0002,2]
[379071311,1755115864531,-151.0,0.0002,2]
[379071312,1755115864541,-151.0,0.0002,2]
[379071313,1755115864550,-151.0,0.0002,2]
[379071314,1755115864559,-460.0,0.0002,2]
[379071315,1755115864569,-300.27046445,0.0002,2]
[379071316,1755115864579,-460.0,0.0002,2]
[379071317,1755115864588,-732.95,0.0002,2]
[379071318,1755115864598,-460.0,0.0002,2]
[379071319,1755115864607,-1719.5,0.0002,2]
[379071320,1755115864616,-460.0,0.0002,2]
[379071321,1755115864626,-460.0,0.0002,2]
[379071322,1755115864635,-460.0,0.0002,2]
[379071323,1755115864645,-460.0,0.0002,2]
[379071324,1755115864654,-460.0,0.0002,2]
[379071325,1755115864663,-662.8,0.0002,2]
[379071326,1755115864673,-460.0,0.0002,2]
[379071327,1755115864682,-460.0,0.0002,2]
[379071328,1755115864691,-460.0,0.0002,2]
[379071329,1755115864701,-578.27,0.0002,2]
[379071330,1755115864710,-260.97072022,0.0002,2]
[379071331,1755115864720,-462.01,0.0002,2]
[379071332,1755115864729,-460.0,0.0002,2]
[379071333,1755115864739,-469.49,0.0002,2]
[379071334,1755115864749,-460.0,0.0002,2]
[379071335,1755115864760,-460.0,0.0002,2]
[379071336,1755115864770,-460.0,0.0002,2]
[379071337,1755115864779,-460.0,0.0002,2]
[379071338,1755115864789,-460.0,0.0002,2]
[379071339,1755115864798,-460.0,0.0002,2]
[379071340,1755115864808,-460.0,0.0002,2]
[379071341,1755115864817,-460.0,0.0002,2]
[379071342,1755115864826,-460.0,0.0002,2]
[379071343,1755115864836,-460.0,0.0002,2]
[379071344,1755115864845,-460.0,0.0002,2]
[379071345,1755115864855,-460.0,0.0002,2]
[379071346,1755115864864,-470.25547687,0.0002,2]
[379071347,1755115864874,-460.0,0.0002,2]
[379071348,1755115864883,-475.12,0.0002,2]
[379071349,1755115864893,-460.0,0.0002,2]
[379071350,1755115864902,-460.0,0.0002,2]
[379071351,1755115864912,-460.0,0.0002,2]
[379071352,1755115864922,-460.0,0.0002,2]
[379071353,1755115864931,-460.0,0.0002,2]
[379071354,1755115864940,-585.4,0.0002,2]
[379071355,1755115864949,-460.0,0.0002,2]
[379071356,1755115864959,-460.0,0.0002,2]
[379071357,1755115864967,-701.63,0.0002,2]
[379071358,1755115864977,-460.0,0.0002,2]
[379071359,1755115864986,-460.0,0.0002,2]
[379071360,1755115864996,-460.0,0.0002,2]
[379071361,1755115865005,-460.0,0.0002,2]
[379071362,1755115865014,-460.0,0.0002,2]
[379071363,1755115865024,-460.0,0.0002,2]
[379071364,1755115865034,-565.72054893,0.0002,2]
[379071365,1755115865044,-151.0,0.0002,2]
[379071366,1755115865055,-151.0,0.0002,2]
[379071367,1755115865065,-151.0,0.0002,2]
[379071368,1755115865075,-151.0,0.0002,2]
[379071369,1755115865085,-151.0,0.0002,2]
[379071370,1755115865095,-506.15,0.0002,2]
[379071371,1755115865116,-179.520655,0.0002,2]
[379071372,1755115865136,-772.37,0.0002,2]
[379071373,1755115865146,-460.0,0.0002,2]
[379071374,1755115865156,-460.0,0.0002,2]
[379071375,1755115865166,-460.0,0.0002,2]
[379071376,1755115865180,-460.0,0.0002,2]
[379071377,1755115865190,-184.594539,0.0002,2]